bitfinex-derivatives/quotes_BTCF0:USTF0_20250709
["timestamp","ask_amount","ask_price","bid_price","bid_amount"]
[1752053671089,1.34003913,108690.0,108680.0,1.10436541]
[1752053671292,1.026045,108690.0,108680.0,1.10436541]
[1752053671480,1.026045,108690.0,108680.0,1.16676541]
[1752053672488,0.399725,108690.0,108680.0,1.16676541]
[1752053672689,1.026005,108690.0,108680.0,1.16676541]
[1752053673489,1.026005,108690.0,108680.0,1.20819377]
[1752053674890,0.20376,108690.0,108680.0,1.4596879]
[1752053675082,0.66729221,108690.0,108680.0,1.20819377]
[1752053675482,0.66729221,108690.0,108680.0,1.21751019]
[1752053676391,0.85127831,108690.0,108680.0,1.21751019]
[1752053677290,0.85127831,108690.0,108680.0,1.20819377]
[1752053677783,0.22499831,108690.0,108680.0,1.20819377]
[1752053679086,0.85123831,108690.0,108680.0,1.20819377]
[1752053680094,0.85123831,108690.0,108680.0,1.21758002]
[1752053681191,0.85123831,108690.0,108680.0,1.20819377]
[1752053682694,0.85123831,108690.0,108680.0,1.19740425]
[1752053683380,0.85123831,108690.0,108680.0,1.18301794]
[1752053683695,0.85123831,108690.0,108680.0,1.15588801]
[1752053683889,0.86321831,108690.0,108680.0,1.15588801]
[1752053684085,0.88173831,108690.0,108680.0,1.09348801]
[1752053684282,1.17811244,108690.0,108680.0,0.21589975]
[1752053684484,1.17811244,108690.0,108680.0,0.2266893]
[1752053684681,1.17811244,108690.0,108680.0,0.47811051]
[1752053686594,1.17811244,108690.0,108680.0,0.29410724]
[1752053686794,1.17811244,108690.0,108680.0,0.47811024]
[1752053688590,1.26078503,108690.0,108680.0,0.47811024]
[1752053689097,1.26078503,108690.0,108680.0,0.46732098]
[1752053690500,1.26078503,108690.0,108680.0,0.46736418]
[1752053691188,1.26078503,108690.0,108680.0,0.47815373]
[1752053693712,1.17811244,108690.0,108680.0,0.51952807]
[1752053696200,1.17811244,108690.0,108680.0,0.51955726]
[1752053697393,1.17811244,108690.0,108680.0,0.57476481]
[1752053698502,1.17811244,108690.0,108680.0,0.57476728]
[1752053700691,1.17811244,108690.0,108680.0,0.32327315]
[1752053700892,1.17811244,108690.0,108680.0,0.57476728]
[1752053701895,1.17811244,108690.0,108680.0,0.53338166]
[1752053702099,1.17811244,108690.0,108680.0,0.57477743]
[1752053703703,1.17811244,108690.0,108680.0,0.51956988]
[1752053705909,1.17811244,108690.0,108680.0,0.57477743]
[1752053706409,1.17811244,108690.0,108680.0,0.57477865]
[1752053707009,1.17811244,108690.0,108680.0,0.5195711]
[1752053708212,1.17811244,108690.0,108680.0,0.5442211]
[1752053708410,1.17811244,108690.0,108680.0,0.57477865]
[1752053711219,1.17811244,108690.0,108680.0,0.56398932]
[1752053711517,1.16613244,108690.0,108680.0,0.56398932]
[1752053712414,1.16613244,108690.0,108680.0,0.31249519]
[1752053712617,1.16613244,108690.0,108680.0,0.56398932]
[1752053713515,1.16613244,108690.0,108680.0,0.56399002]
[1752053717009,1.16613244,108690.0,108680.0,0.58864002]
[1752053717408,1.16613244,108690.0,108680.0,0.56399002]
[1752053721121,0.91463831,108690.0,108680.0,0.34793533]
[1752053721309,0.92661831,108690.0,108680.0,0.85092359]
[1752053721511,0.91463831,108690.0,108680.0,0.85092359]
[1752053721712,0.92661831,108690.0,108680.0,0.85092359]
[1752053722013,0.91463831,108690.0,108680.0,0.85092359]
[1752053722212,0.92661831,108690.0,108680.0,0.85092359]
[1752053722923,0.92661831,108690.0,108680.0,0.34793533]
[1752053723119,0.92661831,108690.0,108680.0,0.85092359]
[1752053723731,0.92661831,108690.0,108680.0,0.85093501]
[1752053724821,0.86317831,108690.0,108680.0,1.20093501]
[1752053725022,0.86317831,108690.0,108680.0,1.26573501]
[1752053726620,0.86317831,108690.0,108680.0,1.25143294]
[1752053726823,0.86317831,108690.0,108680.0,1.26573499]
[1752053730323,0.86317831,108690.0,108680.0,1.25494626]
[1752053730528,0.86317831,108690.0,108680.0,1.2657356]
[1752053732727,0.86317831,108690.0,108680.0,1.2657357]
[1752053733723,0.3196509,108690.0,108680.0,1.21052815]
[1752053733922,0.9458509,108690.0,108680.0,1.21052815]
[1752053735528,0.9458509,108690.0,108680.0,1.19973881]
[1752053735829,0.9458509,108690.0,108680.0,1.21051938]
[1752053738234,0.86317831,108690.0,108680.0,1.21051938]
[1752053743835,0.86317831,108690.0,108680.0,1.22433116]
[1752053744438,0.86317831,108690.0,108680.0,1.22430681]
[1752053745541,0.86317831,108690.0,108680.0,1.26572015]
[1752053746740,0.89517831,108690.0,108680.0,1.26572015]
[1752053750846,0.89517831,108690.0,108680.0,1.22430681]
[1752053751041,0.89517831,108690.0,108680.0,1.26572095]
[1752053751240,0.89517831,108690.0,108680.0,1.2549321]
[1752053751843,0.89517831,108690.0,108680.0,1.21351796]
[1752053754149,0.92547831,108690.0,108680.0,1.21351796]
[1752053756050,0.92547831,108690.0,108680.0,1.213532]
[1752053757050,0.04101221,108690.0,108680.0,1.213532]
[1752053757350,0.66713221,108690.0,108680.0,2.08814216]
[1752053757536,0.66713221,108690.0,108680.0,1.85044061]
[1752053758651,0.66713221,108690.0,108680.0,1.93322089]
[1752053759253,0.04101221,108690.0,108680.0,1.93322089]
[1752053761149,0.04101221,108690.0,108680.0,1.9332206]
[1752053763857,0.04101221,108690.0,108680.0,1.9331558]
[1752053773664,0.04101221,108690.0,108680.0,1.83655404]
[1752053776766,0.04101221,108690.0,108680.0,1.89176159]
[1752053778268,0.02008221,108690.0,108680.0,1.89176159]
[1752053783783,0.02008221,108690.0,108680.0,1.87794825]
[1752053784272,0.05168221,108690.0,108680.0,1.93315154]
[1752053784474,0.23566901,108690.0,108680.0,1.93315153]
[1752053785070,0.05168221,108690.0,108680.0,1.87794825]
[1752053785672,0.05168221,108690.0,108680.0,1.87794815]
[1752053787269,0.05168221,108690.0,108680.0,1.87794805]
[1752053789874,0.05168221,108690.0,108680.0,1.86715995]
[1752053790073,0.23566901,108690.0,108680.0,1.87794808]
[1752053790471,0.23566901,108690.0,108680.0,1.37495982]
[1752053790676,0.23566901,108690.0,108680.0,2.50379417]
[1752053790873,0.26666901,108690.0,108680.0,2.50379417]
[1752053795972,0.26666901,108690.0,108680.0,2.50379428]
[1752053798174,0.08268221,108690.0,108680.0,2.50379428]
[1752053798369,0.26666891,108690.0,108680.0,2.50379428]
[1752053804381,0.26666891,108690.0,108680.0,2.48960864]
[1752053806574,0.26666891,108690.0,108680.0,1.23760864]
[1752053807681,0.26666891,108690.0,108680.0,1.23760867]
[1752053812484,0.26666891,108690.0,108680.0,1.25199292]
[1752053813586,0.26666891,108690.0,108680.0,1.25199285]
[1752053819088,0.26666891,108690.0,108680.0,1.25199277]
[1752053820181,0.26666891,108690.0,108680.0,1.87791277]
[1752053821383,0.26666891,108690.0,108680.0,1.87791281]
[1752053823793,0.26666891,108690.0,108680.0,1.89178596]
[1752053830204,0.26666891,108690.0,108680.0,1.89178592]
[1752053833698,0.26666891,108690.0,108680.0,1.87791277]
[1752053833998,0.08268221,108690.0,108680.0,1.87791277]
[1752053834700,0.26666891,108690.0,108680.0,1.87791277]
[1752053835901,0.26666891,108690.0,108680.0,1.25199277]
[1752053836106,0.26666891,108690.0,108680.0,1.87787277]
[1752053840002,0.26666891,108690.0,108680.0,0.74900451]
[1752053840195,0.26666891,108690.0,108680.0,1.84637277]
[1752053840389,0.26666891,108690.0,108680.0,1.90160478]
[1752053841101,0.26666891,108690.0,108680.0,1.28572478]
[1752053841301,0.26666891,108690.0,108680.0,1.91160478]
[1752053841703,0.26666891,108690.0,108680.0,0.92572478]
[1752053841902,0.26666891,108690.0,108680.0,1.93160478]
[1752053842304,0.26666891,108690.0,108680.0,0.92572478]
[1752053842605,0.26666891,108690.0,108680.0,1.91156478]
[1752053843110,0.26666891,108690.0,108680.0,1.28572478]
[1752053843406,0.26666891,108690.0,108680.0,1.91156478]
[1752053844905,0.26666891,108690.0,108680.0,1.91156517]
[1752053850807,0.26666891,108690.0,108680.0,1.90077708]
[1752053851108,0.26666891,108690.0,108680.0,1.91156554]
[1752053853910,0.26666891,108690.0,108680.0,1.87145554]
[1752053855815,0.26666891,108690.0,108680.0,1.89529554]
[1752053856614,0.26666891,108690.0,108680.0,1.89529556]
[1752053859526,0.08268221,108690.0,108680.0,1.89529556]
[1752053859726,0.08268221,108690.0,108680.0,1.92529556]
[1752053862427,0.08268221,108690.0,108680.0,1.9252954]
[1752053863030,0.02008221,108690.0,108680.0,2.17678953]
[1752053863228,0.02008221,108690.0,108680.0,2.17677859]
[1752053863528,0.02008221,108690.0,108680.0,2.12155752]
[1752053863728,0.02008221,108690.0,108680.0,2.13541364]
[1752053863931,0.02008221,108690.0,108680.0,1.88391951]
[1752053865323,0.02008221,108690.0,108680.0,1.8695349]
[1752053865623,0.02008221,108690.0,108680.0,1.88391931]
[1752053873833,0.02008221,108690.0,108680.0,1.87006319]
[1752053874937,0.20406891,108690.0,108680.0,1.87006319]
[1752053875139,0.20406891,108690.0,108680.0,1.84251162]
[1752053875537,0.20406891,108690.0,108680.0,1.8425118]
[1752053876438,0.02008221,108690.0,108680.0,1.8425118]
[1752053877631,0.05088221,108690.0,108680.0,1.8425118]
[1752053880040,0.05088221,108690.0,108680.0,1.82812728]
[1752053880235,0.05088221,108690.0,108680.0,1.84251173]
[1752053882145,0.05088221,108690.0,108680.0,1.84251168]
[1752053883238,0.05088221,108690.0,108680.0,1.87006325]
[1752053884546,0.23486821,108690.0,108680.0,1.87006325]
[1752053885146,0.23486821,108690.0,108680.0,1.87006329]
[1752053888050,0.23486821,108690.0,108680.0,1.8700634]
[1752053890844,0.23486821,108690.0,108680.0,1.87006341]
[1752053893450,0.05088221,108690.0,108680.0,1.87006341]
[1752053893951,0.23486821,108690.0,108680.0,1.87006341]
[1752053896852,0.23486821,108690.0,108680.0,1.87006337]
[1752053903657,0.23486821,108690.0,108680.0,1.84622337]
[1752053905755,0.23486821,108690.0,108680.0,1.86965337]
[1752053913963,0.23486821,108690.0,108680.0,1.88353067]
[1752053914457,0.23486821,108690.0,108680.0,1.88353056]
[1752053923265,0.23486821,108690.0,108680.0,1.88353058]
[1752053923762,0.23486821,108690.0,108680.0,1.86965323]
[1752053929075,0.23486821,108690.0,108680.0,1.86965308]
[1752053934980,0.23486821,108690.0,108680.0,1.86965296]
[1752053938083,0.23486821,108690.0,108680.0,1.869653]
[1752053944287,0.20406821,108690.0,108680.0,1.869653]
[1752053949086,0.02008221,108690.0,108680.0,1.869653]
[1752053949388,0.20406571,108690.0,108680.0,1.869653]
[1752053949695,0.02008221,108690.0,108680.0,1.869653]
[1752053950574,0.20406581,108690.0,108680.0,1.869653]
[1752053953799,0.20406581,108690.0,108680.0,1.88352919]
[1752053957401,0.02008221,108690.0,108680.0,1.88352919]
[1752053957600,0.20406571,108690.0,108680.0,1.88352919]
[1752053960410,0.20406571,108690.0,108680.0,1.88352906]
[1752053960904,0.02008221,108690.0,108680.0,1.88352906]
[1752053962406,0.20406581,108690.0,108680.0,1.88352906]
[1752053963804,0.20406581,108690.0,108680.0,1.86965287]
[1752053964597,0.02008221,108690.0,108680.0,1.86965287]
[1752053971409,0.02008221,108690.0,108680.0,1.8696528]
[1752053981525,0.20406581,108690.0,108680.0,1.8696528]
[1752053982327,0.23576581,108690.0,108680.0,1.8696528]
[1752053983929,0.23576581,108690.0,108680.0,1.86965278]
[1752053984229,0.05178221,108690.0,108680.0,1.86965278]
[1752053984527,0.23576581,108690.0,108680.0,1.86965278]
[1752053992933,0.23576581,108690.0,108680.0,1.86965279]
[1752053994823,0.05178221,108690.0,108680.0,1.86965279]
[1752053997640,0.05178221,108690.0,108680.0,1.86965248]
[1752054000346,0.23576581,108690.0,108680.0,1.86965248]
[1752054003843,0.05178221,108690.0,108680.0,1.88352492]
[1752054004943,0.23576581,108690.0,108680.0,1.88352492]
[1752054006546,0.23576581,108690.0,108680.0,1.84210233]
[1752054006742,0.23576581,108690.0,108680.0,1.88352477]
[1752054010153,0.23576581,108690.0,108680.0,1.84210233]
[1752054010541,0.23576571,108690.0,108680.0,1.88352518]
[1752054010834,0.26846571,108690.0,108680.0,1.85352518]
[1752054013852,0.26846571,108690.0,108680.0,1.83965248]
[1752054018458,0.26846571,108690.0,108680.0,1.83965257]
[1752054021563,0.26846571,108690.0,108680.0,1.83965269]
[1752054023459,0.02008221,108690.0,108680.0,2.06359849]
[1752054023655,0.02008221,108690.0,108680.0,2.15179868]
[1752054024354,0.02008221,108690.0,108680.0,2.0415652]
[1752054025256,0.02008221,108690.0,108680.0,2.0425652]
[1752054027362,0.02008221,108690.0,108680.0,2.04256412]
[1752054028370,0.02008221,108690.0,108680.0,2.04156412]
[1752054028564,0.02008221,108690.0,108680.0,2.04356412]
[1752054030263,0.02008221,108690.0,108680.0,2.04356403]
[1752054031462,0.02008221,108690.0,108680.0,2.15379617]
[1752054033173,0.02008221,108690.0,108680.0,2.14300915]
[1752054033370,0.02008221,108690.0,108680.0,2.15379617]
[1752054034371,0.02008221,108690.0,108680.0,2.44559617]
[1752054036274,0.02008221,108690.0,108680.0,2.44559582]
[1752054039180,0.02008221,108690.0,108680.0,2.44559572]
[1752054042081,0.02008221,108690.0,108680.0,2.44559538]
[1752054043984,0.02008221,108690.0,108680.0,2.41808358]
[1752054048179,0.06503822,108700.0,108690.0,0.1839834]
[1752054048374,0.06503822,108700.0,108690.0,2.44150385]
[1752054049486,0.06503822,108700.0,108690.0,2.44250385]
[1752054049487,0.06603822,108700.0,108690.0,2.44250385]
[1752054050085,0.06603822,108700.0,108690.0,2.44350385]
[1752054050285,0.06603822,108700.0,108690.0,2.52622419]
[1752054051489,0.26676822,108700.0,108690.0,2.52622419]
[1752054051678,0.26676822,108700.0,108690.0,2.53493419]
[1752054053589,0.26676822,108700.0,108690.0,2.50333419]
[1752054053782,0.26676822,108700.0,108690.0,2.47568471]
[1752054054493,0.26676822,108700.0,108690.0,2.36545257]
[1752054054690,0.26676822,108700.0,108690.0,2.47568471]
[1752054054990,0.26676822,108700.0,108690.0,2.36545257]
[1752054055491,0.26676822,108700.0,108690.0,2.47568471]
[1752054056891,0.26676822,108700.0,108690.0,2.36545257]
[1752054057188,0.26676822,108700.0,108690.0,2.47568471]
[1752054057387,0.26676822,108700.0,108690.0,2.36545257]
[1752054059794,0.26676822,108700.0,108690.0,2.36545245]
[1752054060089,0.26676822,108700.0,108690.0,2.44826221]
[1752054061494,0.26676822,108700.0,108690.0,2.43109023]
[1752054063587,0.26676822,108700.0,108690.0,2.34828047]
[1752054065094,0.46271472,108700.0,108690.0,2.14940209]
[1752054065595,0.71420885,108700.0,108690.0,2.14940209]
[1752054065891,0.46271472,108700.0,108690.0,2.14940209]
[1752054076305,0.46271472,108700.0,108690.0,2.40089686]
[1752054076602,0.46271472,108700.0,108690.0,2.40088648]
[1752054079108,0.46271472,108700.0,108690.0,2.14939235]
[1752054080504,0.46271472,108700.0,108690.0,2.40088648]
[1752054080806,0.20186822,108700.0,108690.0,2.31808111]
[1752054081011,0.20186822,108700.0,108690.0,2.38078111]
[1752054081794,0.20186822,108700.0,108690.0,2.4635827]
[1752054081995,0.20186822,108700.0,108690.0,2.38078111]
[1752054082200,0.20186822,108700.0,108690.0,2.46358224]
[1752054084811,0.20186822,108700.0,108690.0,2.38078069]
[1752054088210,0.20186822,108700.0,108690.0,2.49101283]
[1752054089721,0.20186822,108700.0,108690.0,2.46358128]
[1752054090807,0.20186822,108700.0,108690.0,2.46358127]
[1752054093919,0.20186822,108700.0,108690.0,2.51878143]
[1752054099531,0.20186822,108700.0,108690.0,2.46358127]
[1752054099731,0.20186822,108700.0,108690.0,2.46358091]
[1752054103831,0.20186822,108700.0,108690.0,2.49101246]
[1752054108627,0.23206822,108700.0,108690.0,2.49101246]
[1752054117136,0.23206822,108700.0,108690.0,2.47663035]
[1752054117342,0.23206822,108700.0,108690.0,2.49101246]
[1752054121743,0.20186822,108700.0,108690.0,2.49101246]
[1752054122144,0.20186822,108700.0,108690.0,2.49101248]
[1752054130748,0.20186822,108700.0,108690.0,2.4658438]
[1752054130955,0.23236822,108700.0,108690.0,2.49101247]
[1752054133350,0.23236822,108700.0,108690.0,2.46361608]
[1752054133949,0.23236822,108700.0,108690.0,2.43600447]
[1752054136060,0.20186822,108700.0,108690.0,2.6874986]
[1752054136264,0.0342,108720.0,108710.0,0.1839496]
[1752054136558,0.0642,108720.0,108710.0,2.37418658]
[1752054136862,0.0642,108720.0,108710.0,2.37418636]
[1752054137047,0.0642,108720.0,108710.0,2.42938686]
[1752054137249,0.0642,108720.0,108710.0,2.42936087]
[1752054137454,0.0672,108720.0,108710.0,2.43036087]
[1752054137658,0.0672,108720.0,108710.0,2.46096087]
[1752054138060,0.0702,108720.0,108710.0,2.46096087]
[1752054139454,0.0702,108720.0,108710.0,2.46095942]
[1752054139764,0.0702,108720.0,108710.0,2.46095888]
[1752054140466,0.0702,108720.0,108710.0,2.47018507]
[1752054141462,0.0702,108720.0,108710.0,2.45939958]
[1752054141658,0.0702,108720.0,108710.0,2.47018507]
[1752054143959,0.0702,108720.0,108710.0,2.51164644]
[1752054145567,0.0702,108720.0,108710.0,2.51164612]
[1752054148462,0.0702,108720.0,108710.0,2.51164568]
[1752054149069,0.0702,108720.0,108710.0,2.42880993]
[1752054152066,0.0702,108720.0,108710.0,2.42880944]
[1752054153870,0.0702,108720.0,108710.0,2.51164519]
[1752054155371,0.0702,108720.0,108710.0,2.42880944]
[1752054155875,0.0702,108720.0,108710.0,2.51164519]
[1752054158484,0.0702,108720.0,108710.0,2.53164519]
[1752054161085,0.27601952,108730.0,108720.0,0.1839327]
[1752054161269,0.28799952,108730.0,108720.0,1.11343667]
[1752054161577,0.24202002,108730.0,108720.0,1.11343667]
[1752054162283,0.24702002,108730.0,108720.0,1.11343667]
[1752054162483,0.18906102,108730.0,108720.0,1.16863717]
[1752054163489,0.20104102,108730.0,108720.0,1.16863717]
[1752054163882,0.18906102,108730.0,108720.0,1.16863717]
[1752054164084,0.25096102,108730.0,108720.0,1.16863717]
[1752054165090,0.25296102,108730.0,108720.0,1.16863717]
[1752054165485,0.19106102,108730.0,108720.0,1.16863717]
[1752054165684,0.19106102,108730.0,108720.0,1.23303717]
[1752054166283,0.19106102,108730.0,108720.0,1.1917014]
[1752054166590,0.19106102,108730.0,108720.0,1.2853221]
[1752054167586,0.19106102,108730.0,108720.0,1.27453715]
[1752054170185,0.00713822,108730.0,108720.0,1.27453715]
[1752054170385,0.00713822,108730.0,108720.0,1.28532202]
[1752054170587,0.19105412,108730.0,108720.0,1.28532202]
[1752054171192,0.19105412,108730.0,108720.0,1.27453715]
[1752054171692,0.00713822,108730.0,108720.0,1.52603128]
[1752054171995,0.00713822,108730.0,108720.0,1.47083078]
[1752054172189,0.00713822,108730.0,108720.0,1.39877869]
[1752054172389,0.42228689,108760.0,108750.0,0.1838821]
[1752054172694,0.42228689,108760.0,108750.0,0.44975617]
[1752054172888,0.43426689,108760.0,108750.0,0.46636617]
[1752054173096,0.43426689,108760.0,108750.0,0.49055617]
[1752054174198,0.43926689,108760.0,108750.0,0.49055617]
[1752054174896,0.51247579,108760.0,108750.0,0.49055617]
[1752054175097,0.51647579,108760.0,108750.0,0.49155617]
[1752054175397,0.51647579,108760.0,108750.0,0.83155617]
[1752054175996,0.76796992,108760.0,108750.0,0.83155617]
[1752054176493,0.68529733,108760.0,108750.0,0.83155617]
[1752054176996,0.76796992,108760.0,108750.0,0.84155617]
[1752054177196,0.51647579,108760.0,108750.0,0.84155617]
[1752054177390,0.4338032,108760.0,108750.0,0.84155617]
[1752054177795,0.4338032,108760.0,108750.0,0.82717623]
[1752054177992,0.4298032,108760.0,108750.0,0.84055352]
[1752054178197,0.67929733,108760.0,108750.0,0.84255352]
[1752054178391,0.67929733,108760.0,108750.0,0.8838964]
[1752054179288,0.4278032,108760.0,108750.0,0.8838964]
[1752054179485,0.67929733,108760.0,108750.0,0.8838964]
[1752054180095,0.66731733,108760.0,108750.0,0.8838964]
[1752054180299,0.2937741,108760.0,108750.0,0.8838964]
[1752054180499,0.2937741,108760.0,108750.0,0.9469964]
[1752054180700,0.2937741,108760.0,108750.0,0.94699496]
[1752054181297,0.005,108760.0,108750.0,1.19848909]
[1752054181505,0.005,108760.0,108750.0,1.25365845]
[1752054181900,0.005,108760.0,108750.0,1.20927026]
[1752054182099,0.005,108760.0,108750.0,1.28207943]
[1752054182301,0.005,108760.0,108750.0,1.24073655]
[1752054182605,0.005,108760.0,108750.0,1.26832124]
[1752054183192,0.004,108760.0,108750.0,1.26732124]
[1752054183798,0.004,108760.0,108750.0,1.51881537]
[1752054183997,0.004,108760.0,108750.0,1.47728966]
[1752054184196,0.004,108760.0,108750.0,1.43606132]
[1752054184398,0.004,108760.0,108750.0,1.18456719]
[1752054184604,0.004,108760.0,108750.0,1.22879553]
[1752054185103,0.002,108760.0,108750.0,1.22879553]
[1752054185303,0.002,108760.0,108750.0,1.18856719]
[1752054185603,0.002,108760.0,108750.0,1.18856448]
[1752054191505,0.002,108760.0,108750.0,1.18856435]
[1752054193899,0.002,108760.0,108750.0,1.28476381]
[1752054197108,0.002,108760.0,108750.0,1.57656381]
[1752054197309,0.002,108760.0,108750.0,1.53533547]
[1752054200409,0.002,108760.0,108750.0,1.61808952]
[1752054202115,0.002,108760.0,108750.0,1.5631184]
[1752054205315,0.002,108760.0,108750.0,1.48036435]
[1752054206321,0.002,108760.0,108750.0,1.59059649]
[1752054209014,0.002,108760.0,108750.0,1.59059512]
[1752054212024,0.002,108760.0,108750.0,1.5905951]
[1752054212221,0.002,108760.0,108750.0,1.48036296]
[1752054213727,0.002,108760.0,108750.0,1.5906805]
[1752054213918,0.002,108760.0,108750.0,1.48036296]
[1752054215021,0.002,108760.0,108750.0,1.48036291]
[1752054217626,0.002,108760.0,108750.0,1.61815308]
[1752054217925,0.002,108760.0,108750.0,1.61815307]
[1752054218225,0.002,108760.0,108750.0,1.4803629]
[1752054218625,0.002,108760.0,108750.0,1.61815307]
[1752054233537,0.002,108760.0,108750.0,1.72846912]
[1752054233739,0.002,108760.0,108750.0,1.59067895]
[1752054233936,0.002,108760.0,108750.0,1.4803629]
[1752054235443,0.002,108760.0,108750.0,2.0423829]
[1752054235646,0.0639,108760.0,108750.0,2.0423829]
[1752054239044,0.0639,108760.0,108750.0,2.0749829]
[1752054239950,0.0639,108760.0,108750.0,2.18529895]
[1752054240138,0.0639,108760.0,108750.0,2.21779895]
[1752054240446,0.0339,108760.0,108750.0,2.21779895]
[1752054240947,0.002,108760.0,108750.0,2.21779895]
[1752054248645,0.002,108760.0,108750.0,2.1074829]
[1752054249554,0.002,108760.0,108750.0,1.60449464]
[1752054249753,0.002,108760.0,108750.0,2.21780034]
[1752054252254,0.002,108760.0,108750.0,2.21765839]
[1752054255060,0.002,108760.0,108750.0,2.10734095]
[1752054255261,0.002,108760.0,108750.0,2.24513101]
[1752054260256,0.002,108760.0,108750.0,2.10734084]
[1752054262964,0.002,108760.0,108750.0,2.1900842]
[1752054264067,0.002,108760.0,108750.0,2.16250416]
[1752054266670,0.002,108760.0,108750.0,2.16350416]
[1752054267170,0.002,108760.0,108750.0,2.10834084]
[1752054267371,0.002,108760.0,108750.0,2.163505]
[1752054267971,0.002,108760.0,108750.0,2.10834084]
[1752054268267,0.002,108760.0,108750.0,2.16350529]
[1752054269170,0.002,108760.0,108750.0,2.10834084]
[1752054269669,0.002,108760.0,108750.0,2.16350546]
[1752054269871,0.002,108760.0,108750.0,2.16350442]
[1752054270070,0.002,108760.0,108750.0,2.1083398]
[1752054270470,0.002,108760.0,108750.0,2.16350464]
[1752054271155,0.002,108760.0,108750.0,2.1083398]
[1752054271360,0.002,108760.0,108750.0,2.16350299]
[1752054272173,0.002,108760.0,108750.0,2.19108316]
[1752054272469,0.002,108760.0,108750.0,2.18030346]
[1752054272668,0.002,108760.0,108750.0,2.19108303]
[1752054274170,0.002,108760.0,108750.0,2.10833967]
[1752054277473,0.002,108760.0,108750.0,2.10773967]
[1752054277669,0.002,108760.0,108750.0,0.98023141]
[1752054277874,0.01398,108760.0,108750.0,2.04263967]
[1752054278077,0.0674,108760.0,108750.0,2.04263967]
[1752054279279,0.0674,108760.0,108750.0,2.07343967]
[1752054279880,0.0674,108760.0,108750.0,1.78163967]
[1752054280583,0.0674,108760.0,108750.0,1.81253967]
[1752054281682,0.0674,108760.0,108750.0,1.81253861]
[1752054285788,0.0674,108760.0,108750.0,2.10433861]
[1752054287386,0.0348,108760.0,108750.0,2.10433861]
[1752054287577,0.0348,108760.0,108750.0,2.10430016]
[1752054290478,0.0348,108760.0,108750.0,2.10429742]
[1752054293484,0.0348,108760.0,108750.0,2.10429744]
[1752054296393,0.0348,108760.0,108750.0,2.10429803]
[1752054297792,0.002,108760.0,108750.0,2.10429803]
[1752054299393,0.002,108760.0,108750.0,2.10429814]
[1752054301389,0.002,108760.0,108750.0,2.09351835]
[1752054301592,0.002,108760.0,108750.0,2.10429819]
[1752054303099,0.002,108760.0,108750.0,2.10400156]
[1752054304390,0.002,108760.0,108750.0,2.10400132]
[1752054304897,0.002,108760.0,108750.0,1.60101306]
[1752054305090,0.002,108760.0,108750.0,2.10400124]
[1752054307412,0.002,108760.0,108750.0,2.10400126]
[1752054308511,0.002,108760.0,108750.0,1.601013]
[1752054308701,0.002,108760.0,108750.0,2.10400126]
[1752054311013,0.002,108760.0,108750.0,2.21432633]
[1752054312017,0.002,108760.0,108750.0,2.10400326]
[1752054312315,0.002,108760.0,108750.0,2.21432633]
[1752054314015,0.002,108760.0,108750.0,2.07310326]
[1752054314208,0.0352,108760.0,108750.0,2.15583538]
[1752054314608,0.0352,108760.0,108750.0,2.18803538]
[1752054315119,0.0352,108760.0,108750.0,2.18803608]
[1752054316720,0.0352,108760.0,108750.0,2.18807012]
[1752054317112,0.002,108760.0,108750.0,2.18807012]
[1752054318609,0.002,108760.0,108750.0,1.56355012]
[1752054318813,0.01398,108760.0,108750.0,1.90469599]
[1752054319020,0.51553963,108760.0,108750.0,1.79116387]
[1752054319217,0.51553963,108760.0,108750.0,1.22148856]
[1752054319410,0.51553963,108760.0,108750.0,1.22148788]
[1752054319617,0.2640455,108760.0,108750.0,0.83068788]
[1752054319919,0.2640455,108760.0,108750.0,1.21046788]
[1752054320120,0.2640455,108760.0,108750.0,1.83534788]
[1752054321020,0.2640455,108760.0,108750.0,1.82112396]
[1752054321323,0.2640455,108760.0,108750.0,1.52932396]
[1752054323125,0.2640455,108760.0,108750.0,1.5185441]
[1752054324126,0.2640455,108760.0,108750.0,1.57111554]
[1752054327322,0.002,108760.0,108750.0,1.57111554]
[1752054327624,0.002,108760.0,108750.0,1.85989135]
[1752054329021,0.002,108760.0,108750.0,1.60839722]
[1752054329223,0.002,108760.0,108750.0,1.85989135]
[1752054329524,0.002,108760.0,108750.0,1.60839722]
[1752054329924,0.002,108760.0,108750.0,1.6084415]
[1752054330823,0.002,108760.0,108750.0,1.85993563]
[1752054332326,0.002,108760.0,108750.0,1.88755395]
[1752054332917,0.002,108760.0,108750.0,1.88755363]
[1752054335428,0.002,108760.0,108750.0,1.6360595]
[1752054336423,0.002,108760.0,108750.0,1.88755363]
[1752054338721,0.002,108760.0,108750.0,1.87677313]
[1752054338926,0.002,108760.0,108750.0,1.88755363]
[1752054344924,0.002,108760.0,108750.0,2.17935363]
[1752054352037,0.002,108760.0,108750.0,1.67636537]
[1752054352235,0.002,108760.0,108750.0,2.17935363]
[1752054352724,0.002,108760.0,108750.0,1.9278595]
[1752054353435,0.002,108760.0,108750.0,2.17935337]
[1752054354139,0.002,108760.0,108750.0,2.15177482]
[1752054356440,0.002,108760.0,108750.0,2.15188108]
[1752054356741,0.002,108760.0,108750.0,1.86008108]
[1752054358742,0.002,108760.0,108750.0,1.60858695]
[1752054359441,0.002,108760.0,108750.0,1.60858726]
[1752054360242,0.1858655,108760.0,108750.0,0.98370726]
[1752054360434,0.44933963,108760.0,108750.0,1.57536726]
[1752054360739,0.2611455,108760.0,108750.0,1.57536726]
[1752054360935,0.2491655,108760.0,108750.0,1.57536726]
[1752054361140,0.2611455,108760.0,108750.0,1.57536726]
[1752054361452,0.2491655,108760.0,108750.0,1.57536726]
[1752054362539,0.002,108760.0,108750.0,1.52021369]
[1752054362737,0.002,108760.0,108750.0,1.85896139]
[1752054364237,0.002,108760.0,108750.0,1.88653994]
[1752054364541,0.002,108760.0,108750.0,1.3835515]
[1752054364933,0.002,108760.0,108750.0,1.88653976]
[1752054367231,0.002,108760.0,108750.0,1.8757597]
[1752054367543,0.002,108760.0,108750.0,1.88653966]
[1752054370446,0.002,108760.0,108750.0,1.88653975]
[1752054372545,0.002,108760.0,108750.0,1.80380763]
[1752054373250,0.002,108760.0,108750.0,1.88649122]
[1752054373749,0.002,108760.0,108750.0,1.88649208]
[1752054374149,0.002,108760.0,108750.0,1.80380763]
[1752054377050,0.002,108760.0,108750.0,1.30081937]
[1752054377252,0.002,108760.0,108750.0,1.80380763]
[1752054379061,0.002,108760.0,108750.0,1.80380751]
[1752054381859,0.002,108760.0,108750.0,1.78943347]
[1752054382059,0.002,108760.0,108750.0,1.80380667]
[1752054384170,0.002,108760.0,108750.0,1.88648794]